fUSD/lending_fUSD_20260301
["ID","MTS","AMOUNT","RATE_DAILY","PERIOD"]
[406949305,1772335844989,-151.0,0.00016438,2]
[406949306,1772335844998,-513.0,0.00016439,2]
[406949307,1772335845007,-513.0,0.00016504,2]
[406949308,1772335845016,-513.0,0.00016522,2]
[406949309,1772335845026,-168.0,0.00016527,2]
[406949310,1772335845035,-2096.00854588,0.00016536,2]
[406949311,1772335845044,-513.0,0.00016541,2]
[406949312,1772335845053,-151.0,0.00016565,2]
[406949313,1772335845062,-151.0,0.00016565,2]
[406949314,1772335845071,-14440.8388925,0.00016565,2]
[406949315,1772335845080,-8329.0368928,0.00016565,2]
[406949316,1772335845089,-60329.2016636,0.00016565,2]
[406949317,1772335845099,-145544.9604749,0.00016565,2]
[406949318,1772335845108,-350.0,0.00016568,2]
[406949319,1772335845117,-313.09,0.00016571,2]
[406949320,1772335845127,-7096.48773313,0.00016585,2]
[406949321,1772335845136,-513.0,0.00016586,2]
[406949322,1772335845146,-513.0,0.00016603,2]
[406949323,1772335845155,-513.0,0.00016635,2]
[406949324,1772335845165,-463.21655743,0.00016637,2]
[406949325,1772335845175,-513.0,0.00016648,2]
[406949326,1772335845184,-327.92,0.00016666,2]
[406949327,1772335845193,-513.0,0.0001667,2]
[406949328,1772335845203,-1000.0,0.00016712,2]
[406949329,1772335845213,-845.0,0.0001672,2]
[406949330,1772335845222,-845.0,0.0001672,2]
[406949331,1772335845231,-160.0,0.0001672,2]
[406949332,1772335845241,-1000.0,0.0001672,2]
[406949333,1772335845250,-1000.0,0.0001672,2]
[406949334,1772335845259,-1000.0,0.0001672,2]
[406949335,1772335845268,-1000.0,0.0001672,2]
[406949336,1772335845277,-966.89381173,0.0001672,2]
[406949337,1772335845286,-753.24848,0.0001672,2]
[406949338,1772335845296,-500.0,0.00016724,2]
[406949339,1772335845305,-563.55,0.00016724,2]
[406949340,1772335845315,-350.0,0.0001673,2]
[406949341,1772335845325,-166.66,0.00016731,2]
[406949342,1772335845334,-152.98355904,0.00016749,2]
[406949343,1772335845343,-152.0,0.00016762,3]
[406949344,1772335845353,-350.0,0.00016798,2]
[406949345,1772335845362,-2483.8093942,0.0001683,2]
[406949346,1772335845372,-300.0,0.00016845,3]
[406949347,1772335845381,-300.0,0.00016845,3]
[406949348,1772335845390,-300.0,0.00016845,3]
[406949349,1772335845400,-300.0,0.00016845,3]
[406949350,1772335845409,-300.0,0.00016845,3]
[406949351,1772335845419,-1600.0,0.00016846,2]
[406949352,1772335845429,-151.0,0.00016874,2]
[406949353,1772335845438,-151.0,0.00016877,2]
[406949354,1772335845448,-255.4751,0.00016877,2]
[406949355,1772335845458,-278.105987,0.00016877,2]
[406949356,1772335845467,-278.105987,0.00016877,2]
[406949357,1772335845476,-278.105987,0.00016877,2]
[406949358,1772335845486,-233.811589,0.00016877,2]
[406949359,1772335845495,-278.105987,0.00016877,2]
[406949360,1772335845505,-233.811589,0.00016877,2]
[406949361,1772335845514,-233.811589,0.00016877,2]
[406949362,1772335845524,-233.811589,0.00016877,2]
[406949363,1772335845534,-414.206117,0.00016877,2]
[406949364,1772335845543,-414.206117,0.00016877,2]
[406949365,1772335845553,-414.206117,0.00016877,2]
[406949366,1772335845562,-414.206117,0.00016877,2]
[406949367,1772335845571,-37289.36826565,0.00016877,2]
[406949368,1772335845580,-297.06608557,0.00016901,2]
[406949369,1772335845589,-753.24848,0.0001692,2]
[406949370,1772335845599,-2500.0,0.00016964,2]
[406949371,1772335845608,-350.0,0.00016965,2]
[406949372,1772335845617,-159.0,0.00016982,3]
[406949373,1772335845627,-1000.0,0.00016986,2]
[406949374,1772335845636,-300.0,0.00017,2]
[406949375,1772335845646,-6731.7239806,0.00017,2]
[406949376,1772335845655,-350.0,0.00017014,3]
[406949377,1772335845665,-151.0,0.00017033,2]
[406949378,1772335845675,-151.0,0.00017033,2]
[406949379,1772335845684,-151.0,0.00017033,2]
[406949380,1772335845695,-151.0,0.00017033,2]
[406949381,1772335845706,-151.0,0.00017033,2]
[406949382,1772335845715,-151.0,0.00017033,2]
[406949383,1772335845724,-151.0,0.00017033,2]
[406949384,1772335845735,-3222.1866947,0.00017033,2]
[406949385,1772335845744,-1858.4593357,0.00017033,2]
[406949386,1772335845753,-13461.2644288,0.00017033,2]
[406949387,1772335845763,-32475.4703395,0.00017033,2]
[406949388,1772335845774,-160.0,0.0001704,2]
[406949389,1772335845783,-845.0,0.0001704,2]
[406949390,1772335845792,-845.0,0.0001704,2]
[406949391,1772335845802,-160.0,0.0001704,2]
[406949392,1772335845811,-845.0,0.0001704,2]
[406949393,1772335845825,-583.0,0.00017061,2]
[406949394,1772335845834,-150.0,0.00017061,2]
[406949395,1772335845843,-150.0,0.00017061,2]
[406949396,1772335845852,-150.0,0.00017061,2]
[406949397,1772335845862,-185.0,0.00017061,2]
[406949398,1772335845873,-225.09441752,0.0001707,2]
[406949399,1772335845883,-20000.0,0.000171,2]
[406949400,1772335845893,-151.0,0.000171,2]
[406949401,1772335845902,-151.0,0.000171,2]
[406949402,1772335845912,-153.106706,0.000171,2]
[406949403,1772335845921,-363.44108357,0.00017109,2]
[406949404,1772335845929,-54462.88940338,0.0001711,2]
[406949405,1772335845938,-151.0,0.0001711,2]
[406949406,1772335845946,-150.0,0.0001711,2]
[406949407,1772335845955,-213.0,0.0001711,2]
[406949408,1772335845963,-302.46,0.0001711,2]
[406949409,1772335845972,-351.63904068,0.0001711,2]
[406949410,1772335845980,-753.24848,0.0001712,2]
[406949411,1772335845988,-535.34638188,0.00017149,2]
[406949413,1772335845997,-350.0,0.0001722,2]
[406949415,1772335846005,-7096.48773313,0.00017242,2]
[406949416,1772335846014,-166.66,0.00017249,2]
[406949417,1772335846022,-1000.0,0.0001726,2]
[406949418,1772335846031,-546.0,0.00017285,2]
[406949419,1772335846039,-245.0,0.00017285,2]
[406949420,1772335846047,-699.0,0.00017316,2]
[406949421,1772335846055,-150.0,0.00017316,2]
[406949422,1772335846063,-150.0,0.00017316,2]
[406949423,1772335846072,-150.0,0.00017316,2]
[406949424,1772335846080,-150.0,0.00017316,2]
[406949425,1772335846088,-246.0,0.00017316,2]
[406949426,1772335846097,-753.24848,0.0001732,2]
[406949427,1772335846106,-554.2127879,0.00017358,2]
[406949428,1772335846115,-464.0,0.0001736,2]
[406949429,1772335846123,-195.0,0.0001736,2]
[406949430,1772335846131,-152.0,0.00017384,4]
[406949431,1772335846140,-37289.36826565,0.00017389,2]
[406949432,1772335846149,-218.23034,0.00017397,2]
[406949433,1772335846159,-1900.0,0.000174,6]
[406949434,1772335846168,-421.0,0.00017428,2]
[406949435,1772335846176,-162.3071556,0.00017497,2]
[406949436,1772335846184,-1900.0,0.000175,6]
[406949437,1772335846193,-2016.40424739,0.00017512,2]
[406949438,1772335846201,-753.24848,0.0001752,2]
[406949439,1772335846210,-1941.0,0.00017534,2]
[406949440,1772335846218,-1000.0,0.00017543,2]
[406949441,1772335846227,-2249.61306587,0.00017556,2]
[406949442,1772335846483,-4537.10213413,0.00017556,2]
[406949443,1772335846493,-255.0,0.00017576,2]
[406949444,1772335846501,-166.7264051,0.00017589,2]
[406949445,1772335846510,-1900.0,0.000176,6]
[406949446,1772335846521,-159.0,0.00017609,3]
[406949447,1772335846530,-421.0,0.00017626,2]
[406949448,1772335846539,-1528.57832521,0.0001764,2]
[406949450,1772335846547,-350.0,0.00017641,2]
[406949452,1772335846556,-218.61,0.00017657,2]
[406949453,1772335846565,-160.0,0.0001768,2]
[406949455,1772335846573,-500.0,0.00017686,2]
[406949457,1772335846583,-563.55,0.00017686,2]
[406949459,1772335846591,-1900.0,0.000177,6]
[406949460,1772335846600,-170.71812706,0.00017702,45]
[406949462,1772335846609,-218.61,0.00017715,2]
[406949464,1772335846618,-753.24848,0.0001772,2]
[406949466,1772335846627,-500.0,0.00017726,7]
[406949468,1772335846636,-1000.0,0.00017726,7]
[406949470,1772335846645,-700.0,0.00017726,7]
[406949472,1772335846653,-500.0,0.00017727,2]
[406949474,1772335846662,-500.0,0.00017727,2]
[406949476,1772335846671,-445.0,0.00017743,2]
[406949478,1772335846679,-179.72607117,0.00017744,2]
[406949480,1772335846688,-421.0,0.0001775,2]
[406949482,1772335846701,-166.66,0.00017767,2]
[406949484,1772335846711,-197.33363835,0.00017771,2]
[406949485,1772335846720,-218.61,0.00017772,2]
[406949487,1772335846729,-445.0,0.00017785,2]
[406949489,1772335846739,-445.0,0.0001779,2]
[406949491,1772335846748,-2523.0,0.000178,6]
[406949493,1772335846757,-702.66438148,0.00017808,2]
[406949495,1772335846769,-702.66438148,0.00017808,2]
[406949497,1772335846778,-702.66438148,0.00017808,2]
[406949499,1772335846787,-702.66438148,0.00017808,2]
[406949501,1772335846797,-702.66438148,0.00017808,2]
[406949503,1772335846805,-702.66438148,0.00017808,2]
[406949505,1772335846815,-702.66438148,0.00017808,2]
[406949507,1772335846824,-702.66438148,0.00017808,2]
[406949509,1772335846833,-702.66438148,0.00017808,2]
[406949510,1772335846842,-702.66438148,0.00017808,2]
[406949511,1772335846851,-702.66438148,0.00017808,2]
[406949512,1772335846859,-702.66438148,0.00017808,2]
[406949513,1772335846868,-702.66438148,0.00017808,2]
[406949514,1772335846877,-702.66438148,0.00017808,2]
[406949515,1772335846886,-702.66438148,0.00017808,2]
[406949516,1772335846895,-702.66438148,0.00017808,2]
[406949517,1772335846904,-716.71766912,0.00017808,2]
[406949518,1772335846913,-716.71766912,0.00017808,2]
[406949519,1772335846923,-716.71766912,0.00017808,2]
[406949520,1772335846932,-716.71766912,0.00017808,2]
[406949521,1772335846941,-716.71766912,0.00017808,2]
[406949522,1772335846951,-716.71766912,0.00017808,2]
[406949523,1772335846961,-716.71766912,0.00017808,2]
[406949524,1772335846970,-716.71766912,0.00017808,2]
[406949525,1772335846979,-716.71766912,0.00017808,2]
[406949526,1772335846989,-716.71766912,0.00017808,2]
[406949527,1772335846998,-233.811589,0.00017808,2]
[406949528,1772335847007,-233.811589,0.00017808,2]
[406949529,1772335847016,-233.811589,0.00017808,2]
[406949530,1772335847025,-233.811585,0.00017808,2]
[406949531,1772335847040,-414.206117,0.00017808,2]
[406949532,1772335847063,-414.206117,0.00017808,2]
[406949533,1772335847085,-414.206117,0.00017808,2]
[406949534,1772335847095,-414.206115,0.00017808,2]
[406949535,1772335847106,-800.0,0.00017808,2]
[406949536,1772335847117,-150.0,0.0001781,2]
[406949537,1772335847128,-445.0,0.00017811,2]
[406949538,1772335847139,-506.0,0.00017819,2]
[406949539,1772335847149,-500.0,0.0001782,2]
[406949540,1772335847159,-500.0,0.0001782,2]
[406949541,1772335847171,-154.674738,0.0001782,2]
[406949542,1772335847186,-278.105987,0.0001782,2]
[406949543,1772335847203,-278.105987,0.0001782,2]
[406949544,1772335847213,-278.105987,0.0001782,2]
[406949545,1772335847222,-278.105988,0.0001782,2]
[406949546,1772335847241,-25000.0,0.0001783,3]
[406949547,1772335847250,-150.0,0.00017837,2]
[406949548,1772335847261,-25000.0,0.00017838,3]
[406949549,1772335847270,-151.0,0.00017847,2]
[406949550,1772335847282,-151.0,0.00017847,2]
[406949551,1772335847293,-151.0,0.00017847,2]
[406949552,1772335847302,-151.0,0.00017847,2]
[406949553,1772335847313,-151.0,0.00017847,2]
[406949554,1772335847327,-151.0,0.00017847,2]
[406949555,1772335847345,-151.0,0.00017847,2]
[406949556,1772335847354,-151.0,0.00017847,2]
[406949557,1772335847364,-201.894031,0.00017847,2]
[406949558,1772335847373,-25000.0,0.00017847,3]
[406949559,1772335847383,-175.9157993,0.00017848,3]
[406949560,1772335847392,-445.0,0.00017852,2]
[406949561,1772335847403,-350.0,0.00017856,2]
[406949562,1772335847412,-445.0,0.00017856,2]
[406949563,1772335847421,-25000.0,0.00017856,3]
[406949564,1772335847431,-252.0,0.00017862,2]
[406949565,1772335847441,-25000.0,0.00017865,3]
[406949566,1772335847450,-15700.64640736,0.00017874,3]
[406949567,1772335847464,-9299.35359264,0.00017874,3]
[406949568,1772335847474,-25000.0,0.00017882,3]
[406949569,1772335847483,-500.0,0.0001789,2]
[406949570,1772335847492,-563.55,0.0001789,2]
[406949571,1772335847502,-151.0,0.00017891,2]
[406949572,1772335847511,-25000.0,0.00017891,3]
[406949573,1772335847521,-16507.82028334,0.00017891,3]
[406949574,1772335847533,-8492.17971666,0.00017891,3]
[406949575,1772335847543,-445.0,0.00017894,2]
[406949576,1772335847552,-186.34954963,0.00017899,2]
[406949577,1772335847563,-500.0,0.00017899,2]
[406949578,1772335847572,-319.76521431,0.00017899,2]
[406949579,1772335847583,-2277.37165116,0.000179,2]
[406949580,1772335847593,-8884.88039133,0.000179,3]
[406949581,1772335847604,-643.69526,0.000179,3]
[406949582,1772335847620,-385.25156328,0.000179,3]
[406949583,1772335847632,-4903.36528707,0.000179,3]
[406949584,1772335847768,-151.0,0.00014634,2]
[406949585,1772335847779,-2432.6275441,0.000179,3]
[406949586,1772335847796,-2112.68772881,0.000179,3]
[406949587,1772335847810,-5637.49222541,0.000179,3]
[406949588,1772335847822,-385.55211082,0.000179,3]
[406949589,1772335847838,-2357.61,0.000179,3]
[406949590,1772335847853,-1031.13984,0.000179,3]
[406949591,1772335847873,-5642.70196642,0.000179,3]
[406949592,1772335847956,-15582.99608276,0.000179,3]
[406949593,1772335847967,-535.34638188,0.000179,2]
[406949594,1772335847977,-10961.727247,0.000179,3]
[406949595,1772335847988,-6907.09585261,0.000179,2]
[406949596,1772335848000,-1238.7873663,0.000179,2]
[406949597,1772335848013,-3286.43843716,0.000179,2]
[406949598,1772335848037,-504.41788599,0.000179,2]
[406949623,1772337031280,-504.87317304,9.003e-05,2]
[406949624,1772337031290,-2141.1476067,0.00011507,2]
[406949625,1772337031303,-158.3723933,0.00011507,2]
[406949626,1772337031312,-1640.84,0.00011935,2]
[406949627,1772337031322,-1500.0,0.00012013,2]
[406949628,1772337031332,-250.0,0.00012034,2]
[406949629,1772337031341,-904.15,0.00012052,2]
[406949630,1772337031351,-1200.0,0.00012069,2]
[406949631,1772337031360,-500.0,0.0001207,2]
[406949632,1772337031369,-500.0,0.0001207,2]
[406949633,1772337031379,-200.0,0.00012204,2]
[406949634,1772337031388,-300.0,0.00012484,2]
[406949635,1772337031397,-300.0,0.00012484,2]
[406949636,1772337031407,-300.0,0.00012485,2]
[406949637,1772337031416,-939.01,0.00012486,2]
[406949638,1772337031427,-8002.14,0.00012495,2]
[406949639,1772337031438,-166.66,0.00012643,2]
[406949640,1772337031448,-230.0,0.0001265,2]
[406949641,1772337031457,-503.81948187,0.000127,2]
[406949642,1772337031467,-500.0,0.000127,2]
[406949643,1772337031480,-150.0,0.00012799,2]
[406949644,1772337031489,-41225.52074898,0.000128,2]
[406949645,1772337031502,-20741.83535102,0.000128,2]
[406949646,1772337031512,-166.66,0.00012909,2]
[406949647,1772337031521,-10152.1869712,0.00013095,2]
[406949648,1772337031532,-24328.71702364,0.00013095,2]
[406949649,1772337031547,-400.45,0.00013095,2]
[406949651,1772337031558,-882.31924771,0.00013095,2]
[406949653,1772337031569,-6746.12123826,0.00013095,2]
[406949655,1772337031580,-390.37271931,0.00013095,2]
[406949657,1772337031591,-2305.68274974,0.00013095,2]
[406949660,1772337031610,-534.06656813,0.00013095,2]
[406949663,1772337031624,-771.22045425,0.00013095,2]
[406949665,1772337031634,-166.66,0.00013176,2]
[406949667,1772337031643,-151.0,0.00013181,2]
[406949669,1772337031652,-151.0,0.00013181,2]
[406949670,1772337031661,-151.0,0.00013181,2]
[406949672,1772337031670,-151.0,0.00013181,2]
[406949674,1772337031680,-151.0,0.00013181,2]
[406949676,1772337031689,-151.0,0.00013181,2]
[406949678,1772337031698,-151.0,0.00013181,2]
[406949679,1772337031708,-96.3916621,0.00013181,2]
[406949681,1772337037425,-54.6083379,0.00013181,2]
[406949682,1772337037435,-151.0,0.00013181,2]
[406949683,1772337037445,-151.0,0.00013181,2]
[406949684,1772337037454,-120.3716616,0.00013181,2]
[406949685,1772337037466,-30.6283384,0.00013181,2]
[406949686,1772337037476,-151.0,0.00013181,2]
[406949687,1772337037486,-151.0,0.00013181,2]
[406949688,1772337037495,-151.0,0.00013181,2]
[406949689,1772337037504,-151.0,0.00013181,2]
[406949690,1772337037514,-189.08530116,0.00013181,2]
[406949691,1772337037524,-254.85736173,0.00013181,2]
[406949692,1772337037533,-151.0,0.00013181,2]
[406949693,1772337037542,-151.0,0.00013181,2]
[406949694,1772337037555,-151.0,0.00013181,2]
[406949695,1772337037564,-151.0,0.00013181,2]
[406949696,1772337037573,-151.0,0.00013181,2]
[406949697,1772337037582,-151.0,0.00013181,2]
[406949698,1772337037591,-151.0,0.00013181,2]
[406949699,1772337037601,-151.0,0.00013181,2]
[406949700,1772337037610,-3913.5994,0.00013189,2]
[406949701,1772337037619,-799.22959871,0.00013189,2]
[406949702,1772337037635,-58033.41980129,0.00013189,2]
[406949703,1772337037644,-49883.49946264,0.00013196,2]
[406949704,1772337037654,-5581.3155462,0.00013234,2]
[406949705,1772337037663,-2218.47908343,0.00013242,2]
[406949706,1772337037672,-449.95832833,0.00013242,2]
[406949707,1772337037681,-7345.62359815,0.00013242,2]
[406949708,1772337037690,-500.0,0.00013248,2]
[406949709,1772337037700,-166.712536,0.00013272,2]
[406949710,1772337037709,-1680.0,0.00013276,2]
[406949711,1772337037718,-249.63399606,0.00013287,2]
[406949712,1772337037729,-151.0,0.00013292,2]
[406949713,1772337037918,-151.0,0.00013294,2]
[406949714,1772337037928,-1840.36521446,0.00013295,2]
[406949715,1772337037937,-1840.36521446,0.00013295,2]
[406949716,1772337037947,-1840.36521446,0.00013295,2]
[406949717,1772337037958,-1840.36521446,0.00013295,2]
[406949718,1772337037968,-1840.36521446,0.00013295,2]
[406949719,1772337037984,-1840.36521446,0.00013295,2]
[406949720,1772337037994,-1840.36521446,0.00013295,2]
[406949721,1772337038004,-1840.36521446,0.00013295,2]
[406949722,1772337038015,-1840.36521446,0.00013295,2]
[406949723,1772337038025,-1840.36521446,0.00013295,2]
[406949724,1772337038035,-1840.36521446,0.00013295,2]
[406949725,1772337038044,-1840.36521446,0.00013295,2]
[406949726,1772337038053,-1840.36521446,0.00013295,2]
[406949727,1772337038063,-1840.36521446,0.00013295,2]
[406949728,1772337038073,-500.60257638,0.00013295,2]
[406949729,1772337038084,-1840.36521446,0.00013295,2]
[406949730,1772337038095,-512.25357913,0.00013295,2]
[406949731,1772337038106,-501.14392324,0.00013295,2]
[406949732,1772337038116,-503.95682626,0.00013295,2]
[406949733,1772337038127,-1840.36521446,0.00013295,2]
[406949734,1772337038135,-500.0,0.00013295,2]
[406949735,1772337038144,-237.50511893,0.00013295,2]
[406949736,1772337038154,-500.0,0.00013295,2]
[406949737,1772337038163,-500.0,0.00013295,2]
[406949738,1772337038175,-1840.36521446,0.00013295,2]
[406949739,1772337038184,-500.0,0.00013295,2]
[406949740,1772337038193,-500.0,0.00013295,2]
[406949741,1772337038202,-1840.36521446,0.00013295,2]
[406949742,1772337038211,-1840.36521446,0.00013295,2]
[406949743,1772337038220,-326.36974993,0.00013295,2]
[406949744,1772337038229,-500.0,0.00013295,2]
[406949745,1772337038239,-1840.36521446,0.00013295,2]
[406949746,1772337038248,-500.0,0.00013295,2]
[406949747,1772337038261,-1840.36521446,0.00013295,2]
[406949748,1772337038270,-1840.36521446,0.00013295,2]
[406949749,1772337038280,-500.0,0.00013295,2]
[406949750,1772337038289,-1823.82260579,0.00013295,2]
[406949751,1772337038298,-1840.36521446,0.00013295,2]
[406949752,1772337038307,-454.86212753,0.00013295,2]
[406949753,1772337038316,-432.38606191,0.00013295,2]
[406949754,1772337038326,-1840.36521446,0.00013295,2]
[406949755,1772337038335,-1840.36521446,0.00013295,2]
[406949756,1772337038344,-1823.82260579,0.00013295,2]
[406949757,1772337038353,-1840.36521446,0.00013295,2]
[406949758,1772337038363,-1840.36521446,0.00013295,2]
[406949759,1772337038372,-1840.36521446,0.00013295,2]
[406949760,1772337038381,-1823.82260579,0.00013295,2]
[406949761,1772337038390,-1840.36521446,0.00013295,2]
[406949762,1772337038399,-1840.36521446,0.00013295,2]
[406949763,1772337038408,-1823.82260579,0.00013295,2]
[406949764,1772337038417,-1840.36521446,0.00013295,2]
[406949765,1772337038427,-1840.36521446,0.00013295,2]
[406949766,1772337038436,-1823.82260579,0.00013295,2]
[406949767,1772337038445,-1823.82260579,0.00013295,2]
[406949768,1772337038454,-1823.82260579,0.00013295,2]
[406949769,1772337038463,-1840.36521446,0.00013295,2]
[406949770,1772337038472,-1823.82260579,0.00013295,2]
[406949771,1772337038482,-1840.36521446,0.00013295,2]
[406949772,1772337038492,-1823.82260579,0.00013295,2]
[406949773,1772337038501,-1840.36521446,0.00013295,2]
[406949774,1772337038511,-1823.82260579,0.00013295,2]
[406949775,1772337038520,-1823.82260579,0.00013295,2]
[406949776,1772337038529,-1840.36521446,0.00013295,2]
[406949777,1772337038538,-1840.36521446,0.00013295,2]
[406949778,1772337038548,-1823.82260579,0.00013295,2]
[406949779,1772337038557,-1840.36521446,0.00013295,2]
[406949780,1772337038566,-1840.36521446,0.00013295,2]
[406949781,1772337038575,-1823.82260579,0.00013295,2]
[406949782,1772337038585,-1840.36521446,0.00013295,2]
[406949783,1772337038595,-1823.82260579,0.00013295,2]
[406949784,1772337038604,-1840.36521446,0.00013295,2]
[406949785,1772337038614,-1823.82260579,0.00013295,2]
[406949786,1772337038625,-1823.82260579,0.00013295,2]
[406949787,1772337038635,-1823.82260579,0.00013295,2]
[406949788,1772337038645,-1823.82260579,0.00013295,2]
[406949789,1772337038654,-1823.82260579,0.00013295,2]
[406949790,1772337038664,-1823.82260579,0.00013295,2]
[406949791,1772337038674,-1823.82260579,0.00013295,2]
[406949792,1772337038683,-1840.36521446,0.00013295,2]
[406949793,1772337038692,-1823.82260579,0.00013295,2]
[406949794,1772337038702,-1823.82260579,0.00013295,2]
[406949795,1772337038711,-1823.82260579,0.00013295,2]
[406949796,1772337038721,-1823.82260579,0.00013295,2]
[406949797,1772337038731,-1823.82260579,0.00013295,2]
[406949798,1772337038740,-1823.82260579,0.00013295,2]
[406949799,1772337038749,-1169.49080814,0.00013295,2]
[406949800,1772337038762,-654.33179765,0.00013295,2]
[406949801,1772337038771,-1823.82260579,0.00013295,2]
[406949802,1772337038782,-1823.82260579,0.00013295,2]
[406949803,1772337038792,-1840.36521446,0.00013295,2]
[406949804,1772337038801,-1823.82260579,0.00013295,2]
[406949805,1772337038810,-1823.82260579,0.00013295,2]
[406949806,1772337038819,-1823.82260579,0.00013295,2]
[406949807,1772337038828,-1823.82260579,0.00013295,2]
[406949808,1772337038838,-1823.82260579,0.00013295,2]
[406949809,1772337038847,-1840.36521446,0.00013295,2]
[406949810,1772337038856,-1840.36521446,0.00013295,2]
[406949811,1772337038865,-506.14240417,0.00013295,2]
[406949812,1772337038880,-507.71285999,0.00013295,2]
[406949813,1772337038891,-809.96734163,0.00013295,2]
[406949814,1772337038900,-1823.82260579,0.00013295,2]
[406949815,1772337038909,-1823.82260579,0.00013295,2]
[406949816,1772337038918,-1823.82260579,0.00013295,2]
[406949817,1772337038927,-1823.82260579,0.00013295,2]
[406949818,1772337038936,-1823.82260579,0.00013295,2]
[406949819,1772337038945,-1823.82260579,0.00013295,2]
[406949820,1772337038954,-437.521624,0.00013295,2]
[406949821,1772337038970,-1386.30098179,0.00013295,2]
[406949822,1772337038979,-1823.82260579,0.00013295,2]
[406949823,1772337038988,-1823.82260579,0.00013295,2]
[406949824,1772337038998,-1823.82260579,0.00013295,2]
[406949825,1772337039007,-2283.38511792,0.00013295,2]
[406949826,1772337039015,-156.485,0.00013295,2]
[406949827,1772337039028,-500.0,0.00013296,2]
[406949828,1772337039037,-500.0,0.00013296,2]
[406949829,1772337039047,-500.0,0.00013296,2]
[406949830,1772337039055,-532.50757358,0.00013296,2]
[406949831,1772337039064,-500.0,0.00013296,2]
[406949832,1772337039075,-500.0,0.00013296,2]
[406949833,1772337039085,-500.0,0.00013296,2]
[406949834,1772337039097,-507.46541824,0.00013296,2]
[406949835,1772337039106,-500.0,0.00013296,2]
[406949836,1772337039115,-500.0,0.00013296,2]
[406949837,1772337039126,-500.0,0.00013296,2]
[406949838,1772337039136,-236.06944176,0.00013296,2]
[406949839,1772337039145,-500.0,0.00013296,2]
[406949840,1772337039155,-201.14417502,0.00013296,3]
[406949842,1772337039165,-841.56455587,0.00013296,3]
[406949843,1772337039175,-186517.27182306,0.00013297,2]
[406949844,1772337039187,-1321.03045782,0.00013297,2]
[406949845,1772337039198,-607.03156413,0.00013297,2]
[406949846,1772337039682,-396.0700736,0.00013297,2]
[406949847,1772337039694,-742.8787721,0.00013297,2]
[406949848,1772337039706,-1848.86419386,0.00013297,2]
[406949849,1772337039717,-845.39777926,0.00013297,2]
[406949850,1772337039729,-1126173.51218789,0.00013297,2]
[406949874,1772337045285,-902.4970347,0.00013297,2]
[406949878,1772337045606,-5214.4916548,0.00013297,2]
[406949882,1772337097045,698.69,7.23e-05,2]
[406949883,1772337097256,698.69,7.541e-05,2]
[406949884,1772337097454,698.69,7.852e-05,2]
[406949887,1772337308922,159.0,7.852e-05,3]
[406949888,1772337309209,159.0,0.0001021,3]
[406949889,1772337604174,300.0,9.72e-05,7]
[406949890,1772337608260,160.0,7.852e-05,3]
[406949897,1772337906914,160.0,7.852e-05,3]
[406949912,1772338208862,160.0,7.852e-05,3]
[406949926,1772338231527,-698.69,8.164e-05,2]
[406949927,1772338231538,-250.0,8.319e-05,2]
[406949928,1772338231548,-698.69,8.475e-05,2]
[406949929,1772338231558,-300.0,8.475e-05,2]
[406949930,1772338231567,-200.0,8.508e-05,2]
[406949931,1772338231577,-698.69,8.786e-05,2]
[406949932,1772338231588,-250.0,8.98e-05,2]
[406949933,1772338231597,-500.0,9.003e-05,2]
[406949934,1772338231607,-698.69,9.097e-05,2]
[406949935,1772338231617,-698.69,9.409e-05,2]
[406949936,1772338231627,-698.69,9.72e-05,2]
[406949937,1772338231637,-205.0,9.8e-05,2]
[406949938,1772338231648,-1200.0,9.997e-05,2]
[406949939,1772338231657,-150.0,9.999e-05,2]
[406949940,1772338231667,-300.0,9.999e-05,2]